fUSD/lending_fUSD_20251119
["ID","MTS","AMOUNT","RATE_DAILY","PERIOD"]
[394405296,1763535041200,-500.0,0.00041827,7]
[394405298,1763535041209,-500.0,0.00041827,7]
[394405300,1763535041218,-500.0,0.00041827,7]
[394405302,1763535041227,-500.0,0.00041827,7]
[394405304,1763535041236,-500.0,0.00041827,7]
[394405306,1763535041245,-500.0,0.00041827,7]
[394405307,1763535041254,-500.0,0.00041827,7]
[394405308,1763535041263,-521.79902814,0.00041827,7]
[394405309,1763535041272,-500.0,0.00041827,2]
[394405310,1763535041281,-500.0,0.00041827,2]
[394405311,1763535041290,-500.0,0.00041827,2]
[394405312,1763535041299,-335.82259186,0.00041827,2]
[394405313,1763535041308,-10262.65247921,0.00041827,27]
[394405314,1763535041318,-186285.2316091,0.00041828,120]
[394405315,1763535041331,-912.02,0.00041828,120]
[394405316,1763535041391,-195.13,0.00039882,120]
[394405317,1763535041400,-150.0,0.00041621,2]
[394405318,1763535041409,-499.60610703,0.00041828,120]
[394405319,1763535041420,-1771.83,0.00041828,120]
[394405320,1763535041430,-356.54799792,0.00041828,120]
[394405321,1763535041444,-56723.80579921,0.00041828,120]
[394405322,1763535041455,-336.03815297,0.00041828,120]
[394405323,1763535041470,-56306.24978507,0.00041828,120]
[394405324,1763535041481,-429.724996,0.00041828,120]
[394405325,1763535041492,-295.34218119,0.00041828,120]
[394405326,1763535041503,-1376.53,0.00041828,120]
[394405337,1763535043240,-368.14700699,0.00041575,15]
[394405338,1763535043303,-5455.12724607,0.00041575,15]
[394405339,1763535043314,-2768.97912295,0.00041728,15]
[394405340,1763535043324,-37450.89363098,0.00041828,120]
[394405341,1763535043369,-480.77381642,0.00041828,120]
[394405613,1763535046120,-1080.0,0.00041828,120]
[394405640,1763535046357,-377.0455958,0.00041828,120]
[394406734,1763535077987,500.0,0.00041845,120]
[394406735,1763535191028,200.0,0.00041845,30]
[394406736,1763535191687,207.4,0.00041845,30]
[394406737,1763535192298,215.0738,0.00041845,30]
[394406738,1763535192898,215.0738,0.00041845,30]
[394406749,1763535339233,500.0,0.00041845,120]
[394406750,1763535339486,408.70177798,0.00041845,120]
[394406751,1763535363712,200.0,0.00041845,30]
[394406753,1763535628092,-500.0,0.00029999,2]
[394406754,1763535628868,-500.0,0.00029999,2]
[394406755,1763535629313,-200.0,0.00029999,2]
[394406756,1763535629338,-200.0,0.00029999,2]
[394406757,1763535629350,-100.0,0.00029999,2]
[394406758,1763535629906,-500.0,0.00029999,2]
[394406759,1763535632513,-500.0,0.00029999,2]
[394406760,1763535633073,-31.0,0.00029999,2]
[394406761,1763535633095,-31.0,0.00029999,2]
[394406762,1763535633106,-438.0,0.00029999,2]
[394406763,1763535633381,-21.42552114,0.00029999,2]
[394406764,1763535633569,-21.42552114,0.0003,2]
[394406765,1763535633590,-457.14895772,0.0003,2]
[394406766,1763535633685,-500.0,0.0003,2]
[394406767,1763535634083,-500.0,0.0003,2]
[394406768,1763535635580,-500.0,0.0003,2]
[394406769,1763535637281,-500.0,0.0003,2]
[394406770,1763535637783,-500.0,0.0003,2]
[394406771,1763535638570,-500.0,0.0003,2]
[394406772,1763535639275,-500.0,0.0003,2]
[394406773,1763535646206,-200.16866953,0.0003,13]
[394406775,1763535660457,200.0,0.00041845,30]
[394406776,1763535733964,322695.91865623,0.0004185,30]
[394406777,1763535782959,99.66266094,0.0003,13]
[394406778,1763535782988,107.57848226,0.0003,13]
[394406779,1763535917023,10000.0,0.0004185,30]
[394406780,1763535962529,208.14226436,0.0003,13]
[394406783,1763536141740,184.27925338,0.0003,13]
[394406784,1763536141768,23.25577267,0.0003,13]
[394406801,1763536231973,-1200.0,0.00029999,2]
[394406802,1763536231983,-300.0,0.00029999,2]
[394406803,1763536231992,-1031.0,0.00029999,2]
[394406805,1763536232001,-14952.72112773,0.0003,2]
[394406807,1763536232012,-2585.08641977,0.0003,2]
[394406808,1763536232022,-151.0,0.0003,2]
[394406809,1763536232031,-514.0,0.00030137,120]
[394406810,1763536232041,-397.19766291,0.00031314,16]
[394406811,1763536232052,-420.0,0.00032332,2]
[394406812,1763536232062,-151.0,0.00033,14]
[394406813,1763536232073,-858.27470917,0.00033941,21]
[394406814,1763536232083,-151.0,0.00034521,30]
[394406815,1763536232093,-587.0,0.00034847,2]
[394406816,1763536232103,-1117.58457881,0.00035255,24]
[394406817,1763536232112,-500.0,0.00036,2]
[394406818,1763536232122,-171.78815279,0.00036056,30]
[394406819,1763536232132,-1000.0,0.00036474,7]
[394406823,1763536232327,-1392.00611732,0.00036569,27]
[394406825,1763536232337,-188.07684697,0.000372,120]
[394406826,1763536232346,-3374.81,0.00037289,2]
[394406828,1763536232355,-300.0,0.00037295,2]
[394406829,1763536232364,-154.44184,0.00037345,30]
[394406830,1763536232373,-250.0,0.0003738,2]
[394406831,1763536232382,-2630.0,0.000375,30]
[394406832,1763536232391,-154.44184,0.00037545,30]
[394406833,1763536232401,-823.0,0.00037557,2]
[394406834,1763536232409,-3998.33,0.00037641,2]
[394406835,1763536232420,-192.75,0.0003769,60]
[394406836,1763536232429,-660.0,0.00037719,120]
[394406837,1763536232439,-154.44184,0.00037745,30]
[394406838,1763536232450,-1000.0,0.0003777,2]
[394406839,1763536232460,-1852.42,0.00037787,2]
[394406840,1763536232469,-1431.76,0.00037806,2]
[394406841,1763536232478,-280.306,0.00037883,49]
[394406842,1763536232487,-1490.218,0.00037883,49]
[394406843,1763536232496,-1679.66709273,0.00037883,30]
[394406844,1763536232506,-7523.48,0.00037901,2]
[394406845,1763536232515,-4054.1,0.00037926,2]
[394406846,1763536232524,-154.44184,0.00037945,30]
[394406847,1763536232533,-218.93,0.00038001,30]
[394406848,1763536232542,-154.44184,0.00038145,30]
[394406849,1763536232552,-500.0,0.00038164,2]
[394406850,1763536232561,-200.0,0.00038193,2]
[394406851,1763536232570,-154.44184,0.00038345,30]
[394406852,1763536232578,-154.44184,0.00038545,30]
[394406853,1763536232588,-9999.99,0.00038678,2]
[394406854,1763536232597,-154.44184,0.00038745,30]
[394406855,1763536232607,-2751.0,0.00038776,120]
[394406856,1763536232615,-600.0,0.000388,14]
[394406857,1763536232624,-1200.0,0.000389,14]
[394406858,1763536232633,-154.44184,0.00038945,30]
[394406859,1763536232642,-1000.0,0.00038973,7]
[394406860,1763536232651,-307.55481191,0.00039082,2]
[394406861,1763536232667,-12044.44777006,0.00039082,2]
[394406862,1763536232676,-159.49999532,0.00039082,2]
[394406863,1763536232684,-8902.5549945,0.00039082,2]
[394406864,1763536232694,-1000.0,0.00039082,2]
[394406865,1763536232706,-500.0,0.00039096,2]
[394406866,1763536232715,-401.40430022,0.00039126,2]
[394406867,1763536232724,-154.44184,0.00039145,30]
[394406868,1763536232733,-300.0,0.00039158,2]
[394406869,1763536232742,-163.8,0.00039172,2]
[394406870,1763536232751,-382.86979928,0.00039173,5]
[394406871,1763536232760,-500.0,0.00039173,2]
[394406872,1763536232770,-504.02460785,0.00039173,5]
[394406873,1763536232779,-162.34224779,0.00039173,5]
[394406874,1763536232788,-500.0,0.00039173,5]
[394406875,1763536232797,-506.77904287,0.00039173,5]
[394406876,1763536232806,-500.0,0.00039181,120]
[394406877,1763536232815,-500.0,0.00039181,120]
[394406878,1763536232825,-564.13,0.00039181,7]
[394406879,1763536232834,-500.0,0.00039181,120]
[394406880,1763536232843,-500.0,0.00039181,120]
[394406881,1763536232852,-500.0,0.00039181,2]
[394406882,1763536232862,-500.0,0.00039181,2]
[394406883,1763536232871,-500.0,0.00039181,2]
[394406884,1763536232880,-500.0,0.00039181,2]
[394406885,1763536232889,-150.0,0.00039181,60]
[394406886,1763536232898,-500.0,0.00039181,15]
[394406887,1763536232907,-500.0,0.00039181,15]
[394406888,1763536232917,-500.0,0.00039181,15]
[394406889,1763536232926,-500.0,0.00039181,15]
[394406890,1763536232935,-367.34651232,0.00039181,15]
[394406891,1763536232945,-151.92739026,0.00039181,15]
[394406892,1763536232954,-305.51931455,0.00039181,15]
[394406893,1763536232963,-351.68201301,0.00039181,15]
[394406894,1763536232973,-500.0,0.00039181,15]
[394406895,1763536232982,-332.15133906,0.00039181,15]
[394406896,1763536232991,-285424.272386,0.00039182,4]
[394406897,1763536233000,-214778.514427,0.00039182,4]
[394406898,1763536233010,-577.31409519,0.00039182,2]
[394406899,1763536233020,-483.41753495,0.00039182,2]
[394406900,1763536233029,-1000.0,0.00039186,2]
[394406901,1763536233039,-22748.91583227,0.00039191,2]
[394406902,1763536233048,-500.0,0.00039191,120]
[394406903,1763536233057,-500.0,0.00039191,120]
[394406904,1763536233066,-500.0,0.00039191,120]
[394406905,1763536233075,-500.0,0.00039191,120]
[394406906,1763536233085,-500.0,0.00039191,120]
[394406907,1763536233094,-500.0,0.00039191,120]
[394406908,1763536233107,-564.13,0.00039191,7]
[394406909,1763536233116,-564.13,0.00039191,7]
[394406910,1763536233125,-564.13,0.00039191,7]
[394406911,1763536233134,-157.26293651,0.00039191,120]
[394406912,1763536233143,-254.31149853,0.00039191,120]
[394406913,1763536233152,-1600.17,0.00039191,30]
[394406914,1763536233162,-500.0,0.00039191,2]
[394406915,1763536233171,-500.0,0.00039191,2]
[394406916,1763536233180,-500.0,0.00039191,2]
[394406917,1763536233189,-500.0,0.00039191,2]
[394406918,1763536233197,-500.0,0.00039191,2]
[394406919,1763536233207,-500.0,0.00039191,2]
[394406920,1763536233216,-300.0,0.00039191,10]
[394406921,1763536233225,-6076.0,0.00039192,5]
[394406922,1763536233234,-1979.17045392,0.00039197,32]
[394406923,1763536233243,-154.44184,0.00039345,30]
[394406924,1763536233252,-300.0,0.00039375,10]
[394406925,1763536233261,-12352.00258196,0.00039376,2]
[394406926,1763536233273,-8902.55499441,0.00039376,2]
[394406927,1763536233282,-159.4999953,0.00039463,2]
[394406928,1763536233291,-1600.17,0.00039465,30]
[394406929,1763536233300,-154.44184,0.00039545,30]
[394406930,1763536233310,-401.40430017,0.00039563,2]
[394406931,1763536233319,-300.0,0.00039669,10]
[394406932,1763536233329,-12352.00258196,0.0003967,2]
[394406933,1763536233339,-8902.55499441,0.0003967,2]
[394406934,1763536233349,-1600.17,0.00039739,30]
[394406935,1763536233359,-154.44184,0.00039745,30]
[394406936,1763536233368,-159.4999953,0.00039845,2]
[394406937,1763536233377,-192.75,0.00039862,60]
[394406938,1763536233386,-154.44184,0.00039945,30]
[394406939,1763536233396,-300.0,0.00039963,10]
[394406940,1763536233405,-12352.00258196,0.00039964,15]
[394406941,1763536233414,-8902.55499441,0.00039964,15]
[394406942,1763536233423,-1000.0,0.0004,30]
[394406943,1763536233432,-401.40430017,0.00040001,2]
[394406944,1763536233441,-1600.17,0.00040013,30]
[394406945,1763536233451,-300.0,0.0004005,2]
[394406946,1763536233460,-2840.0,0.00040122,2]
[394406947,1763536233469,-154.44184,0.00040145,30]
[394406948,1763536233479,-300.0,0.00040168,2]
[394406949,1763536233491,-162.91919545,0.00040192,30]
[394406950,1763536233500,-159.4999953,0.00040226,28]
[394406951,1763536233510,-1000.0,0.00040238,7]
[394406952,1763536233519,-300.0,0.00040254,2]
[394406953,1763536233529,-12352.00258196,0.00040258,15]
[394406954,1763536233538,-8902.55499441,0.00040258,15]
[394406955,1763536233547,-2840.0,0.00040279,2]
[394406956,1763536233556,-1600.17,0.00040287,30]
[394406957,1763536233565,-300.0,0.00040294,2]
[394406958,1763536233574,-300.0,0.00040411,2]
[394406959,1763536233583,-9169.78978003,0.00040411,5]
[394406960,1763536233593,-5348.0,0.0004042,7]
[394406961,1763536233602,-401.40430017,0.00040438,2]
[394406962,1763536233611,-575.0,0.00040439,2]
[394406963,1763536233620,-822.0,0.00040439,2]
[394406964,1763536233629,-1600.0,0.00040439,2]
[394406965,1763536233638,-794.0,0.00040439,2]
[394406966,1763536233647,-1276.0,0.00040439,2]
[394406967,1763536233656,-1191.0,0.00040439,2]
[394406968,1763536233666,-907.0,0.00040439,2]
[394406969,1763536233675,-705.0,0.00040439,2]
[394406970,1763536233684,-6492.0,0.00040439,2]
[394406971,1763536233693,-1605.0,0.00040439,2]
[394406972,1763536233702,-341.39761624,0.00040473,5]
[394406973,1763536233720,-501.20914453,0.00040473,5]
[394406974,1763536233729,-507.22484298,0.00040473,5]
[394406975,1763536233739,-503.34564414,0.00040473,5]
[394406976,1763536233748,-502.11222657,0.00040473,5]
[394406977,1763536233758,-999.0,0.00040476,3]
[394406978,1763536233768,-500.0,0.00040489,2]
[394406979,1763536233778,-225.4020492,0.00040499,16]
[394406980,1763536233788,-1999.96,0.000405,2]
[394406981,1763536233798,-2029.09,0.000405,2]
[394406982,1763536233807,-1999.96,0.000405,2]
[394406983,1763536233816,-2000.0,0.000405,2]
[394406984,1763536233825,-2000.11,0.000405,2]
[394406985,1763536233835,-500.0,0.00040509,2]
[394406986,1763536233845,-300.0,0.00040528,2]
[394406987,1763536233855,-1499.05254182,0.00040542,2]
[394406988,1763536233864,-154.44184,0.00040545,30]
[394406989,1763536233874,-500.0,0.00040551,120]
[394406990,1763536233884,-500.0,0.00040551,120]
[394406991,1763536233894,-564.13,0.00040551,7]
[394406992,1763536233906,-12352.00258196,0.00040552,15]
[394406993,1763536233915,-8902.55499441,0.00040552,15]
[394406994,1763536233925,-1600.17,0.00040561,30]
[394406995,1763536233934,-708.0,0.00040568,30]
[394406996,1763536233943,-774.71790045,0.00040572,2]
[394406997,1763536233952,-501.94375083,0.00040573,5]
[394406998,1763536233962,-501.97914193,0.00040573,5]
[394406999,1763536233971,-500.0,0.00040573,5]
[394407000,1763536233980,-500.0,0.00040573,5]
[394407001,1763536233990,-500.0,0.00040573,5]
[394407002,1763536233999,-300.0,0.00040574,2]
[394407003,1763536234009,-535.0,0.00040597,120]
[394407004,1763536234018,-535.0,0.00040597,120]
[394407005,1763536234027,-535.0,0.00040597,120]
[394407006,1763536234037,-535.0,0.00040597,120]
[394407007,1763536234046,-535.0,0.00040597,120]
[394407008,1763536234055,-535.0,0.00040597,120]
[394407009,1763536234064,-535.0,0.00040597,120]
[394407010,1763536234073,-153.0,0.00040597,120]
[394407011,1763536234082,-153.0,0.00040597,120]
[394407012,1763536234094,-153.0,0.00040597,120]
[394407013,1763536234103,-153.0,0.00040597,120]
[394407014,1763536234112,-153.0,0.00040597,120]
[394407015,1763536234121,-153.0,0.00040597,120]
[394407016,1763536234130,-153.0,0.00040597,120]
[394407017,1763536234140,-153.0,0.00040597,120]
[394407018,1763536234149,-153.0,0.00040597,120]
[394407019,1763536234158,-153.0,0.00040597,120]
[394407020,1763536234168,-153.0,0.00040597,120]
[394407021,1763536234178,-153.0,0.00040597,120]
[394407022,1763536234187,-153.0,0.00040597,120]
[394407023,1763536234196,-153.0,0.00040597,120]
[394407024,1763536234205,-153.0,0.00040597,120]
[394407025,1763536234214,-186.0,0.00040599,120]
[394407026,1763536234223,-186.0,0.00040599,120]
[394407027,1763536234234,-186.0,0.00040599,120]
[394407028,1763536234243,-186.0,0.00040599,120]
[394407029,1763536234252,-186.0,0.00040599,120]
[394407030,1763536234262,-186.0,0.00040599,120]
[394407031,1763536234274,-186.0,0.00040599,120]
[394407032,1763536234284,-186.0,0.00040599,120]
[394407033,1763536234293,-186.0,0.00040599,120]
[394407034,1763536234302,-186.0,0.00040599,120]
[394407035,1763536234311,-186.0,0.00040599,120]
[394407036,1763536234320,-186.0,0.00040599,120]
[394407037,1763536234329,-186.0,0.00040599,120]
[394407038,1763536234338,-186.0,0.00040599,120]
[394407039,1763536234349,-186.0,0.00040599,120]
[394407040,1763536234358,-186.0,0.00040599,120]
[394407041,1763536234367,-500.0,0.000406,5]
[394407042,1763536234377,-1000.0,0.00040602,2]
[394407043,1763536234386,-160.00428829,0.00040605,7]
[394407044,1763536234395,-159.4999953,0.00040607,28]
[394407045,1763536234404,-189.38300331,0.0004063,30]
[394407046,1763536234413,-162.91919545,0.0004063,30]
[394407047,1763536234422,-162.91919545,0.0004063,30]
[394407048,1763536234431,-162.91919544,0.0004063,30]
[394407049,1763536234440,-1827.56,0.00040674,2]
[394407050,1763536234449,-171.26,0.00040697,14]
[394407051,1763536234459,-1000.0,0.00040706,7]
[394407052,1763536234468,-300.0,0.00040721,2]
[394407053,1763536234477,-1499.05254182,0.00040723,2]
[394407054,1763536234486,-300.0,0.00040731,2]
[394407055,1763536234495,-300.0,0.0004074,2]
[394407056,1763536234504,-154.44184,0.00040745,30]
[394407057,1763536234514,-300.0,0.00040748,2]
[394407058,1763536234523,-300.0,0.00040784,2]
[394407059,1763536234532,-328.0,0.00040811,120]
[394407060,1763536234541,-2000.0,0.00040827,120]
[394407061,1763536234550,-1600.17,0.00040835,30]
[394407062,1763536234559,-300.0,0.00040844,2]
[394407063,1763536234568,-12352.00258196,0.00040846,15]
[394407064,1763536234577,-8902.55499441,0.00040846,15]
[394407065,1763536234586,-153.0,0.00040872,120]
[394407066,1763536234595,-153.0,0.00040872,120]
[394407067,1763536234604,-153.0,0.00040872,120]
[394407068,1763536234613,-153.0,0.00040872,120]
[394407069,1763536234622,-153.0,0.00040872,120]
[394407070,1763536234631,-153.0,0.00040872,120]
[394407071,1763536234640,-153.0,0.00040872,120]
[394407072,1763536234649,-153.0,0.00040872,120]
[394407073,1763536234658,-153.0,0.00040872,120]
[394407074,1763536234667,-153.0,0.00040872,120]
[394407075,1763536234676,-153.0,0.00040872,120]
[394407076,1763536234685,-153.0,0.00040872,120]
[394407077,1763536234693,-153.0,0.00040872,120]
[394407078,1763536234702,-153.0,0.00040872,120]
[394407079,1763536234712,-153.0,0.00040872,120]
[394407080,1763536234721,-153.0,0.00040872,120]
[394407081,1763536234730,-153.0,0.00040872,120]
[394407082,1763536234739,-153.0,0.00040872,120]
[394407083,1763536234748,-153.0,0.00040872,120]
[394407084,1763536234757,-153.0,0.00040872,120]
[394407085,1763536234767,-153.0,0.00040872,120]
[394407086,1763536234776,-153.0,0.00040872,120]
[394407087,1763536234785,-153.0,0.00040872,120]
[394407088,1763536234794,-153.0,0.00040872,120]
[394407089,1763536234804,-500.0,0.00040873,5]
[394407090,1763536234813,-500.0,0.00040873,5]
[394407091,1763536234822,-501.68153132,0.00040873,5]
[394407092,1763536234832,-500.0,0.00040873,5]
[394407093,1763536234842,-401.40430017,0.00040875,2]
[394407094,1763536234851,-490.54,0.00040877,2]
[394407095,1763536234861,-719.03,0.00040877,2]
[394407096,1763536234870,-547.0,0.00040877,120]
[394407097,1763536234879,-547.0,0.00040877,120]
[394407098,1763536234888,-153.0,0.00040877,120]
[394407099,1763536234898,-153.0,0.00040877,120]
[394407100,1763536234918,-153.0,0.00040877,120]
[394407101,1763536234937,-153.0,0.00040877,120]
[394407102,1763536234947,-153.0,0.00040877,120]
[394407103,1763536234956,-153.0,0.00040877,120]
[394407104,1763536234965,-153.0,0.00040877,120]
[394407105,1763536234976,-153.0,0.00040877,120]
[394407106,1763536234985,-153.0,0.00040877,120]
[394407107,1763536234994,-206.0,0.00040877,120]
[394407108,1763536235003,-206.0,0.00040877,120]
[394407109,1763536235012,-206.0,0.00040877,120]
[394407110,1763536235021,-206.0,0.00040877,120]
[394407111,1763536235031,-206.0,0.00040877,120]
[394407112,1763536235041,-206.0,0.00040877,120]
[394407113,1763536235050,-206.0,0.00040877,120]
[394407114,1763536235059,-206.0,0.00040877,120]
[394407115,1763536235069,-153.0,0.00040877,120]
[394407116,1763536235078,-153.0,0.00040877,120]
[394407117,1763536235089,-153.0,0.00040877,120]
[394407118,1763536235099,-153.0,0.00040877,120]
[394407119,1763536235108,-153.0,0.00040877,120]
[394407120,1763536235117,-153.0,0.00040877,120]
[394407121,1763536235125,-153.0,0.00040877,120]
[394407122,1763536235136,-153.0,0.00040877,120]
[394407123,1763536235146,-153.0,0.00040877,120]
[394407124,1763536235155,-300.0,0.00040887,2]
[394407125,1763536235164,-1800.0,0.000409,14]
[394407126,1763536235173,-151.88679204,0.0004092,7]
[394407127,1763536235182,-1499.05254182,0.00040923,2]
[394407128,1763536235192,-154.44184,0.00040945,30]
[394407129,1763536235201,-300.0,0.0004096,2]
[394407130,1763536235211,-881.39224307,0.00040967,120]
[394407131,1763536235220,-214.828858,0.0004098,2]
[394407132,1763536235229,-708.0,0.00040986,30]
[394407133,1763536235238,-159.4999953,0.00040988,28]
[394407134,1763536235247,-1000.0,0.00040992,7]
[394407135,1763536235256,-300.0,0.00041,2]
[394407136,1763536235266,-150.0,0.00041,7]
[394407137,1763536235278,-300.0,0.00041006,2]
[394407138,1763536235287,-416.99,0.00041014,2]
[394407139,1763536235296,-416.99,0.00041014,2]
[394407140,1763536235305,-416.99,0.00041014,2]
[394407141,1763536235316,-416.99,0.00041014,2]
[394407142,1763536235325,-416.99,0.00041014,2]
[394407143,1763536235337,-832.02,0.00041014,2]
[394407144,1763536235348,-416.78,0.00041014,2]
[394407145,1763536235358,-328.33,0.00041014,2]
[394407146,1763536235368,-1209.94,0.00041014,2]
[394407147,1763536235378,-550.51,0.00041014,2]
[394407148,1763536235387,-177.45,0.00041014,2]
[394407149,1763536235396,-151.24,0.00041014,2]
[394407150,1763536235405,-150.0,0.00041014,2]
[394407151,1763536235414,-573.14,0.00041014,2]
[394407152,1763536235423,-150.0,0.00041014,2]
[394407153,1763536235432,-169.55,0.00041014,2]
[394407154,1763536235442,-150.0,0.00041015,7]
[394407155,1763536235451,-300.0,0.00041029,2]
[394407156,1763536235460,-917.05660398,0.00041031,7]
[394407157,1763536235470,-300.0,0.00041034,2]
[394407158,1763536235479,-843.0,0.00041037,7]
[394407159,1763536235488,-92.02418995,0.00041038,14]
[394407160,1763536235586,-79.23581005,0.00041038,14]
[394407161,1763536235596,-300.0,0.00041047,2]
[394407162,1763536235605,-300.0,0.00041047,2]
[394407163,1763536235614,-2840.0,0.00041049,120]
[394407164,1763536235623,-319.85,0.00041053,14]
[394407165,1763536235632,-150.0,0.00041057,7]
[394407166,1763536235641,-225.4020492,0.00041062,17]
[394407167,1763536235649,-300.0,0.00041085,2]
[394407168,1763536235658,-285.44,0.00041093,14]
[394407169,1763536235667,-3313.7,0.00041095,2]
[394407170,1763536235676,-500.0,0.00041095,2]
[394407171,1763536235685,-300.0,0.00041095,2]
[394407172,1763536235694,-500.0,0.00041095,2]
[394407173,1763536235703,-200.0,0.00041096,20]
[394407174,1763536235712,-200.0,0.00041096,20]
[394407175,1763536235721,-200.0,0.00041096,20]
[394407176,1763536235730,-1600.17,0.00041109,30]
[394407177,1763536235739,-12352.00258196,0.0004114,15]
[394407178,1763536235748,-8902.55499441,0.0004114,15]
[394407179,1763536235757,-154.44184,0.00041145,30]
[394407180,1763536235766,-1000.0,0.00041148,10]
[394407181,1763536235775,-300.0,0.00041148,2]
[394407182,1763536235785,-300.0,0.00041165,2]
[394407183,1763536235794,-300.0,0.00041189,2]
[394407184,1763536235803,-300.0,0.00041194,2]
[394407185,1763536235813,-2400.0,0.000412,15]
[394407186,1763536235822,-1010.0,0.000412,7]
[394407187,1763536235832,-300.0,0.00041208,2]
[394407188,1763536235841,-1000.0,0.00041229,14]
[394407189,1763536235850,-1499.05254182,0.00041236,2]
[394407190,1763536235860,-5888.0,0.00041241,2]
[394407191,1763536235869,-300.0,0.00041256,2]
[394407192,1763536235878,-300.0,0.00041265,2]
[394407193,1763536235887,-300.0,0.00041269,2]
[394407194,1763536235896,-300.0,0.00041273,2]
[394407195,1763536235905,-300.0,0.00041283,2]
[394407196,1763536235915,-214.828858,0.00041289,2]
[394407197,1763536235924,-300.0,0.00041293,2]
[394407198,1763536235933,-300.0,0.00041299,2]
[394407199,1763536236057,-3000.0,0.000413,15]
[394407200,1763536236083,-843.0,0.00041301,2]
[394407201,1763536236093,-300.0,0.00041301,2]
[394407202,1763536236102,-401.40430017,0.00041313,3]
[394407203,1763536236111,-300.0,0.00041313,2]
[394407204,1763536236120,-300.0,0.00041316,2]
[394407205,1763536236129,-300.0,0.00041328,2]
[394407206,1763536236138,-300.0,0.00041333,2]
[394407207,1763536236147,-154.44184,0.00041345,30]
[394407208,1763536236156,-511.88267857,0.00041347,30]
[394407209,1763536236166,-16669.84818969,0.00041355,120]
[394407213,1763536238067,-561.0,0.00040439,2]
[394407214,1763536238077,-214.82886,0.00041354,2]
[394407215,1763536238086,-106290.01501031,0.00041355,120]
[394407216,1763536238096,-300.0,0.00041358,2]
[394407217,1763536238105,-300.0,0.00041367,2]
[394407219,1763536238115,-3313.7,0.00041369,2]
[394407220,1763536238124,-300.0,0.00041369,2]
[394407221,1763536238133,-500.0,0.00041369,2]
[394407223,1763536238153,-159.4999953,0.0004137,28]
[394407226,1763536238163,-158.86102011,0.0004137,30]
[394407228,1763536238173,-300.0,0.00041377,2]
[394407230,1763536238183,-1600.17,0.00041383,30]
[394407232,1763536238193,-300.0,0.00041399,2]
[394407234,1763536238202,-2000.0,0.000414,2]
[394407236,1763536238212,-600.0,0.000414,15]
[394407238,1763536238221,-708.0,0.00041404,30]
[394407240,1763536238230,-300.0,0.00041407,2]
[394407242,1763536238240,-150.0,0.00041411,14]
[394407244,1763536238249,-300.0,0.00041413,2]
[394407246,1763536238259,-300.0,0.00041413,2]
[394407248,1763536238271,-300.0,0.00041413,2]
[394407250,1763536238280,-504.62978813,0.00041421,10]
[394407252,1763536238290,-554.34903976,0.00041421,10]
[394407254,1763536238299,-302.48585036,0.00041421,106]
[394407256,1763536238309,-469.89579381,0.00041429,120]
[394407258,1763536238319,-500.0,0.00041429,120]
[394407260,1763536238328,-564.13,0.00041429,7]
[394407262,1763536238338,-152.89238043,0.00041429,20]